[Event "Titled Tuesday Blitz August 08 Early 2023"]
[White "Droin, Augustin"]
[Black "Gurel, Ediz"]
[WhiteFideId "45105987"]
[BlackFideId "44507356"]
[WhiteElo "2503"]
[BlackElo "2986"]
[Result "1-0"]
[Round "3"]
[TimeControl "180+1"]
[Date "2023.08.08"]
[WhiteClock "0:00:13"]
[BlackClock "0:00:02"]
[Board "83"]

1. e4 {[%clk 0:02:59]}  c5 {[%clk 0:02:57]} 2. Nf3 {[%clk 0:02:59]}  g6 {[%clk 0:02:58]} 3. c3 {[%clk 0:02:58]}  Bg7 {[%clk 0:02:56]} 4. d4 {[%clk 0:02:59]}  cxd4 {[%clk 0:02:57]} 5. cxd4 {[%clk 0:02:59]}  d5 {[%clk 0:02:58]} 6. e5 {[%clk 0:02:59]}  Nc6 {[%clk 0:02:58]} 7. Bb5 {[%clk 0:02:59]}  Nh6 {[%clk 0:02:57]} 8. O-O {[%clk 0:02:58]}  O-O {[%clk 0:02:57]} 9. Bxc6 {[%clk 0:02:58]}  bxc6 {[%clk 0:02:58]} 10. h3 {[%clk 0:02:58]}  f6 {[%clk 0:02:55]} 11. exf6 {[%clk 0:02:57]}  exf6 {[%clk 0:02:56]} 12. Nc3 {[%clk 0:02:53]}  Nf5 {[%clk 0:02:56]} 13. Na4 {[%clk 0:02:51]}  Re8 {[%clk 0:02:54]} 14. Nc5 {[%clk 0:02:49]}  Bf8 {[%clk 0:02:53]} 15. Re1 {[%clk 0:02:47]}  Rxe1+ {[%clk 0:02:52]} 16. Nxe1 {[%clk 0:02:43]}  Qb6 {[%clk 0:02:46]} 17. Nb3 {[%clk 0:02:36]}  a5 {[%clk 0:02:40]} 18. g4 {[%clk 0:02:12]}  a4 {[%clk 0:02:16]} 19. gxf5 {[%clk 0:02:11]}  a3 {[%clk 0:02:16]} 20. fxg6 {[%clk 0:02:12]}  hxg6 {[%clk 0:02:08]} 21. Qd3 {[%clk 0:02:00]}  Bf5 {[%clk 0:02:07]} 22. Qg3 {[%clk 0:02:00]}  Re8 {[%clk 0:02:04]} 23. Ng2 {[%clk 0:01:59]}  Qb4 {[%clk 0:01:49]} 24. bxa3 {[%clk 0:01:55]}  Qc4 {[%clk 0:01:44]} 25. Ne3 {[%clk 0:01:53]}  Qd3 {[%clk 0:01:44]} 26. Bb2 {[%clk 0:01:43]}  Bd6 {[%clk 0:01:22]} 27. Qf3 {[%clk 0:00:53]}  Be4 {[%clk 0:01:15]} 28. Qxf6 {[%clk 0:00:49]}  Qe2 {[%clk 0:00:42]} 29. Qxd6 {[%clk 0:00:29]}  Qxb2 {[%clk 0:00:41]} 30. Rc1 {[%clk 0:00:17]}  Qe2 {[%clk 0:00:31]} 31. Qg3 {[%clk 0:00:16]}  Rf8 {[%clk 0:00:29]} 32. Ng4 {[%clk 0:00:11]}  Rf3 {[%clk 0:00:15]} 33. Qh4 {[%clk 0:00:10]}  Rd3 {[%clk 0:00:06]} 34. Ne5 {[%clk 0:00:07]}  Rd1+ {[%clk 0:00:04]} 35. Rxd1 {[%clk 0:00:07]}  Qxd1+ {[%clk 0:00:05]} 36. Kh2 {[%clk 0:00:08]}  Qh1+ {[%clk 0:00:05]} 37. Kg3 {[%clk 0:00:09]}  Qg2+ {[%clk 0:00:02]} 38. Kf4 {[%clk 0:00:09]}  Qf1 {[%clk 0:00:01]} 39. Qd8+ {[%clk 0:00:08]}  Kg7 {[%clk 0:00:02]} 40. Qe7+ {[%clk 0:00:09]}  Kg8 {[%clk 0:00:02]} 41. Qf7+ {[%clk 0:00:09]}  Kh8 {[%clk 0:00:03]} 42. Nxg6+ {[%clk 0:00:09]}  Bxg6 {[%clk 0:00:04]} 43. Qxg6 {[%clk 0:00:09]}  Qxf2+ {[%clk 0:00:04]} 44. Ke5 {[%clk 0:00:10]}  Qe2+ {[%clk 0:00:02]} 45. Kd6 {[%clk 0:00:10]}  Qxa2 {[%clk 0:00:03]} 46. Nc5 {[%clk 0:00:09]}  Qxa3 {[%clk 0:00:03]} 47. Qe8+ {[%clk 0:00:10]}  Kg7 {[%clk 0:00:03]} 48. Qxc6 {[%clk 0:00:10]}  Kh8 {[%clk 0:00:03]} 49. Qxd5 {[%clk 0:00:11]}  Qa7 {[%clk 0:00:02]} 50. Qe5+ {[%clk 0:00:11]}  Kg8 {[%clk 0:00:02]} 51. Qe8+ {[%clk 0:00:11]}  Kg7 {[%clk 0:00:03]} 52. Qd7+ {[%clk 0:00:12]}  Qxd7+ {[%clk 0:00:02]} 53. Kxd7 {[%clk 0:00:13]} 1-0


[Site "https://www.chess.com"]

[Event "Titled Tuesday Blitz August 08 Early 2023"]
[White "Megaranto, Susanto"]
[Black "Kanyamarala, Tarun"]
[WhiteFideId "7101384"]
[BlackFideId "45004714"]
[WhiteElo "2985"]
[BlackElo "2501"]
[Result "0-1"]
[Round "3"]
[TimeControl "180+1"]
[Date "2023.08.08"]
[WhiteClock "0:00:56"]
[BlackClock "0:00:48"]
[Board "84"]

1. e4 {[%clk 0:03:00]}  c5 {[%clk 0:02:59]} 2. c3 {[%clk 0:02:59]}  e5 {[%clk 0:02:55]} 3. Nf3 {[%clk 0:02:56]}  Nc6 {[%clk 0:02:53]} 4. Bb5 {[%clk 0:02:51]}  Bd6 {[%clk 0:02:52]} 5. O-O {[%clk 0:02:49]}  Nge7 {[%clk 0:02:51]} 6. d3 {[%clk 0:02:46]}  O-O {[%clk 0:02:50]} 7. Re1 {[%clk 0:02:46]}  Bc7 {[%clk 0:02:49]} 8. Nbd2 {[%clk 0:02:46]}  d6 {[%clk 0:02:48]} 9. Nf1 {[%clk 0:02:42]}  Kh8 {[%clk 0:02:48]} 10. Ng3 {[%clk 0:02:37]}  f5 {[%clk 0:02:47]} 11. Bg5 {[%clk 0:02:20]}  f4 {[%clk 0:02:39]} 12. Nf1 {[%clk 0:02:19]}  h6 {[%clk 0:02:36]} 13. Bxe7 {[%clk 0:02:18]}  Nxe7 {[%clk 0:02:34]} 14. d4 {[%clk 0:02:15]}  a6 {[%clk 0:02:31]} 15. Be2 {[%clk 0:02:09]}  cxd4 {[%clk 0:02:30]} 16. cxd4 {[%clk 0:02:09]}  Be6 {[%clk 0:02:23]} 17. N1d2 {[%clk 0:02:06]}  Ba5 {[%clk 0:02:19]} 18. a3 {[%clk 0:02:03]}  Ng6 {[%clk 0:02:06]} 19. d5 {[%clk 0:01:47]}  Bd7 {[%clk 0:02:01]} 20. b4 {[%clk 0:01:48]}  Bc7 {[%clk 0:01:57]} 21. Nc4 {[%clk 0:01:49]}  b5 {[%clk 0:01:51]} 22. Nb2 {[%clk 0:01:44]}  a5 {[%clk 0:01:45]} 23. Qd2 {[%clk 0:01:43]}  Nh4 {[%clk 0:01:36]} 24. Rec1 {[%clk 0:01:37]}  Bb6 {[%clk 0:01:32]} 25. Nd1 {[%clk 0:01:36]}  Nxf3+ {[%clk 0:01:29]} 26. Bxf3 {[%clk 0:01:35]}  Bd4 {[%clk 0:01:30]} 27. Rab1 {[%clk 0:01:33]}  axb4 {[%clk 0:01:24]} 28. axb4 {[%clk 0:01:34]}  Ra3 {[%clk 0:01:22]} 29. Nc3 {[%clk 0:01:24]}  Qh4 {[%clk 0:01:18]} 30. Rc2 {[%clk 0:01:10]}  Rc8 {[%clk 0:01:11]} 31. Nd1 {[%clk 0:01:03]}  Rxc2 {[%clk 0:00:49]} 32. Qxc2 {[%clk 0:01:04]}  Rxf3 {[%clk 0:00:49]} 33. gxf3 {[%clk 0:00:56]}  Bh3 {[%clk 0:00:48]} 0-1


[Site "https://www.chess.com"]

[Event "Titled Tuesday Blitz August 08 Early 2023"]
[White "Koutlas, Nikolaos"]
[Black "Terry, Renato"]
[WhiteFideId "25827138"]
[BlackFideId "3803457"]
[WhiteElo "2498"]
[BlackElo "2920"]
[Result "0-1"]
[Round "3"]
[TimeControl "180+1"]
[Date "2023.08.08"]
[WhiteClock "0:00:03"]
[BlackClock "0:00:14"]
[Board "87"]

1. Nf3 {[%clk 0:03:00]}  d5 {[%clk 0:03:00]} 2. g3 {[%clk 0:02:53]}  Nf6 {[%clk 0:03:00]} 3. Bg2 {[%clk 0:02:53]}  c6 {[%clk 0:03:00]} 4. O-O {[%clk 0:02:51]}  Bg4 {[%clk 0:03:01]} 5. d3 {[%clk 0:02:52]}  Nbd7 {[%clk 0:03:01]} 6. Nbd2 {[%clk 0:02:52]}  e5 {[%clk 0:03:02]} 7. e4 {[%clk 0:02:52]}  dxe4 {[%clk 0:03:03]} 8. Nxe4 {[%clk 0:02:52]}  Nxe4 {[%clk 0:03:03]} 9. dxe4 {[%clk 0:02:53]}  Qc7 {[%clk 0:03:03]} 10. Be3 {[%clk 0:02:51]}  Be7 {[%clk 0:03:03]} 11. h3 {[%clk 0:02:50]}  Bh5 {[%clk 0:03:03]} 12. Qe2 {[%clk 0:02:44]}  O-O {[%clk 0:03:03]} 13. g4 {[%clk 0:02:45]}  Bg6 {[%clk 0:03:03]} 14. Nd2 {[%clk 0:02:45]}  Nc5 {[%clk 0:03:03]} 15. a4 {[%clk 0:02:42]}  Ne6 {[%clk 0:03:04]} 16. Nc4 {[%clk 0:02:35]}  h6 {[%clk 0:03:04]} 17. a5 {[%clk 0:02:32]}  Bg5 {[%clk 0:03:03]} 18. c3 {[%clk 0:02:26]}  Nf4 {[%clk 0:03:03]} 19. Bxf4 {[%clk 0:02:23]}  Bxf4 {[%clk 0:03:04]} 20. Rfd1 {[%clk 0:02:21]}  Qe7 {[%clk 0:03:04]} 21. Rd6 {[%clk 0:02:16]}  Qh4 {[%clk 0:03:00]} 22. a6 {[%clk 0:02:13]}  b6 {[%clk 0:02:51]} 23. Rxc6 {[%clk 0:02:09]}  h5 {[%clk 0:02:52]} 24. Rd1 {[%clk 0:01:58]}  Rad8 {[%clk 0:02:44]} 25. Rcd6 {[%clk 0:01:51]}  Rc8 {[%clk 0:02:43]} 26. Rd7 {[%clk 0:01:37]}  hxg4 {[%clk 0:02:42]} 27. hxg4 {[%clk 0:01:37]}  Rc6 {[%clk 0:02:09]} 28. R1d6 {[%clk 0:01:25]}  Rxd6 {[%clk 0:01:31]} 29. Nxd6 {[%clk 0:01:23]}  Rd8 {[%clk 0:01:32]} 30. Qb5 {[%clk 0:01:15]}  Rf8 {[%clk 0:01:25]} 31. Qe2 {[%clk 0:01:11]}  Rd8 {[%clk 0:01:25]} 32. Rxa7 {[%clk 0:00:32]}  Rxd6 {[%clk 0:01:18]} 33. Rb7 {[%clk 0:00:24]}  Rd2 {[%clk 0:00:50]} 34. Qxd2 {[%clk 0:00:24]}  Bxd2 {[%clk 0:00:51]} 35. a7 {[%clk 0:00:24]}  Be1 {[%clk 0:00:49]} 36. a8=Q+ {[%clk 0:00:23]}  Kh7 {[%clk 0:00:49]} 37. Qa1 {[%clk 0:00:13]}  Qxf2+ {[%clk 0:00:44]} 38. Kh1 {[%clk 0:00:12]}  Bd2 {[%clk 0:00:35]} 39. Qg1 {[%clk 0:00:03]}  Qe2 {[%clk 0:00:20]} 40. Qh2+ {[%clk 0:00:03]}  Bh6 {[%clk 0:00:21]} 41. g5 {[%clk 0:00:04]}  Qe1+ {[%clk 0:00:20]} 42. Qg1 {[%clk 0:00:04]}  Qh4+ {[%clk 0:00:20]} 43. Qh2 {[%clk 0:00:04]}  Qxg5 {[%clk 0:00:21]} 44. Qh3 {[%clk 0:00:02]}  Qc1+ {[%clk 0:00:15]} 45. Kh2 {[%clk 0:00:03]}  Qxb2 {[%clk 0:00:15]} 46. c4 {[%clk 0:00:03]}  Qf2 {[%clk 0:00:15]} 47. Qg3 {[%clk 0:00:03]}  Bf4 {[%clk 0:00:14]} 48. Qxf4 {[%clk 0:00:03]}  Qxf4+ {[%clk 0:00:14]} 0-1


[Site "https://www.chess.com"]

[Event "Titled Tuesday Blitz August 08 Early 2023"]
[White "Timofeev, Artyom"]
[Black "Ljukin, Sergei"]
[WhiteFideId "4140419"]
[BlackFideId "14102200"]
[WhiteElo "2830"]
[BlackElo "2492"]
[Result "1-0"]
[Round "3"]
[TimeControl "180+1"]
[Date "2023.08.08"]
[WhiteClock "0:02:49"]
[BlackClock "0:02:10"]
[Board "92"]

1. c4 {[%clk 0:03:00]}  c6 {[%clk 0:02:59]} 2. e4 {[%clk 0:02:59]}  d5 {[%clk 0:03:00]} 3. exd5 {[%clk 0:02:59]}  cxd5 {[%clk 0:03:00]} 4. d4 {[%clk 0:03:00]}  Nf6 {[%clk 0:02:59]} 5. Nc3 {[%clk 0:03:00]}  e6 {[%clk 0:02:59]} 6. Nf3 {[%clk 0:02:59]}  Bb4 {[%clk 0:02:59]} 7. Bd3 {[%clk 0:02:59]}  O-O {[%clk 0:02:59]} 8. O-O {[%clk 0:02:59]}  dxc4 {[%clk 0:02:57]} 9. Bxc4 {[%clk 0:02:59]}  b6 {[%clk 0:02:56]} 10. Qe2 {[%clk 0:02:59]}  Bb7 {[%clk 0:02:55]} 11. Rd1 {[%clk 0:02:59]}  Nbd7 {[%clk 0:02:43]} 12. d5 {[%clk 0:02:58]}  exd5 {[%clk 0:02:37]} 13. Nxd5 {[%clk 0:02:58]}  Nxd5 {[%clk 0:02:37]} 14. Bxd5 {[%clk 0:02:58]}  Qc7 {[%clk 0:02:21]} 15. Bxb7 {[%clk 0:02:49]}  Qxb7 {[%clk 0:02:10]} 16. Qb5 {[%clk 0:02:49]} 1-0


[Site "https://www.chess.com"]

[Event "Titled Tuesday Blitz August 08 Early 2023"]
[White "Javakhadze, Zurab"]
[Black "Papayan, Oleg"]
[WhiteFideId "13603647"]
[BlackFideId "4193911"]
[WhiteElo "2809"]
[BlackElo "2490"]
[Result "1-0"]
[Round "3"]
[TimeControl "180+1"]
[Date "2023.08.08"]
[WhiteClock "0:00:09"]
[BlackClock "0:00:00"]
[Board "94"]

1. c4 {[%clk 0:03:00]}  Nf6 {[%clk 0:02:55]} 2. Nc3 {[%clk 0:03:01]}  d5 {[%clk 0:02:55]} 3. cxd5 {[%clk 0:02:58]}  Nxd5 {[%clk 0:02:55]} 4. e4 {[%clk 0:02:56]}  Nxc3 {[%clk 0:02:56]} 5. bxc3 {[%clk 0:02:56]}  g6 {[%clk 0:02:57]} 6. Nf3 {[%clk 0:02:50]}  Bg7 {[%clk 0:02:57]} 7. d4 {[%clk 0:02:48]}  O-O {[%clk 0:02:56]} 8. Ba3 {[%clk 0:02:43]}  Nd7 {[%clk 0:02:54]} 9. Be2 {[%clk 0:02:40]}  c5 {[%clk 0:02:54]} 10. O-O {[%clk 0:02:41]}  Qa5 {[%clk 0:02:51]} 11. Qb3 {[%clk 0:02:38]}  b6 {[%clk 0:02:48]} 12. Rac1 {[%clk 0:02:33]}  Bb7 {[%clk 0:02:45]} 13. d5 {[%clk 0:02:33]}  Ne5 {[%clk 0:02:25]} 14. Nxe5 {[%clk 0:02:31]}  Bxe5 {[%clk 0:02:25]} 15. c4 {[%clk 0:02:32]}  Qd2 {[%clk 0:02:20]} 16. Bf3 {[%clk 0:02:16]}  Bd4 {[%clk 0:02:13]} 17. Rc2 {[%clk 0:02:05]}  Qg5 {[%clk 0:02:13]} 18. Bb2 {[%clk 0:02:05]}  Rac8 {[%clk 0:01:53]} 19. Rd1 {[%clk 0:01:54]}  e5 {[%clk 0:01:14]} 20. dxe6 {[%clk 0:01:26]}  Bxb2 {[%clk 0:01:08]} 21. exf7+ {[%clk 0:01:16]}  Rxf7 {[%clk 0:01:09]} 22. Rxb2 {[%clk 0:01:16]}  Rcf8 {[%clk 0:01:09]} 23. Kf1 {[%clk 0:00:53]}  Qh4 {[%clk 0:01:06]} 24. Qe3 {[%clk 0:00:44]}  Qxh2 {[%clk 0:01:03]} 25. Rbd2 {[%clk 0:00:44]}  Ba6 {[%clk 0:00:57]} 26. Qc3 {[%clk 0:00:44]}  Qf4 {[%clk 0:00:28]} 27. Rd8 {[%clk 0:00:37]}  g5 {[%clk 0:00:27]} 28. Rxf8+ {[%clk 0:00:36]}  Rxf8 {[%clk 0:00:27]} 29. Rd7 {[%clk 0:00:35]}  Qf6 {[%clk 0:00:24]} 30. e5 {[%clk 0:00:31]}  Qf5 {[%clk 0:00:07]} 31. Bd5+ {[%clk 0:00:21]}  Kh8 {[%clk 0:00:07]} 32. e6+ {[%clk 0:00:20]}  Rf6 {[%clk 0:00:08]} 33. Qb2 {[%clk 0:00:10]}  h6 {[%clk 0:00:00]} 34. Rf7 {[%clk 0:00:09]} 1-0


[Site "https://www.chess.com"]

[Event "Titled Tuesday Blitz August 08 Early 2023"]
[White "Brunner, Nicolas"]
[Black "Klukin, Kirill"]
[WhiteFideId "620246"]
[BlackFideId "24199273"]
[WhiteElo "2488"]
[BlackElo "2799"]
[Result "0-1"]
[Round "3"]
[TimeControl "180+1"]
[Date "2023.08.08"]
[WhiteClock "0:00:01"]
[BlackClock "0:00:17"]
[Board "96"]

1. Nf3 {[%clk 0:03:00]}  d5 {[%clk 0:02:58]} 2. g3 {[%clk 0:03:01]}  Nf6 {[%clk 0:02:58]} 3. Bg2 {[%clk 0:03:01]}  Bf5 {[%clk 0:02:59]} 4. O-O {[%clk 0:03:01]}  e6 {[%clk 0:02:59]} 5. d3 {[%clk 0:03:02]}  Be7 {[%clk 0:02:58]} 6. Nbd2 {[%clk 0:03:01]}  h6 {[%clk 0:02:59]} 7. Qe1 {[%clk 0:03:02]}  O-O {[%clk 0:02:59]} 8. e4 {[%clk 0:03:01]}  Bh7 {[%clk 0:02:59]} 9. Qe2 {[%clk 0:02:57]}  c5 {[%clk 0:02:55]} 10. Re1 {[%clk 0:02:54]}  Nc6 {[%clk 0:02:54]} 11. e5 {[%clk 0:02:51]}  Nd7 {[%clk 0:02:53]} 12. Nf1 {[%clk 0:02:51]}  Qc7 {[%clk 0:02:30]} 13. h4 {[%clk 0:02:49]}  Rfc8 {[%clk 0:02:30]} 14. Bf4 {[%clk 0:02:37]}  Nd4 {[%clk 0:02:23]} 15. Nxd4 {[%clk 0:02:35]}  cxd4 {[%clk 0:02:24]} 16. Rac1 {[%clk 0:02:32]}  Qa5 {[%clk 0:02:20]} 17. a3 {[%clk 0:02:29]}  Qb6 {[%clk 0:02:20]} 18. Rb1 {[%clk 0:02:19]}  Nc5 {[%clk 0:01:58]} 19. Nh2 {[%clk 0:02:06]}  Rc6 {[%clk 0:01:39]} 20. h5 {[%clk 0:01:51]}  Rac8 {[%clk 0:01:39]} 21. Ng4 {[%clk 0:01:46]}  Qa6 {[%clk 0:01:12]} 22. Nxh6+ {[%clk 0:01:12]}  gxh6 {[%clk 0:01:08]} 23. Bxh6 {[%clk 0:01:13]}  Bf8 {[%clk 0:00:47]} 24. Qg4+ {[%clk 0:01:12]}  Kh8 {[%clk 0:00:46]} 25. Bg5 {[%clk 0:01:10]}  Nd7 {[%clk 0:00:42]} 26. Qf4 {[%clk 0:01:02]}  Kg8 {[%clk 0:00:31]} 27. Bf6 {[%clk 0:00:30]}  Nxf6 {[%clk 0:00:26]} 28. exf6 {[%clk 0:00:30]}  Rxc2 {[%clk 0:00:20]} 29. Re5 {[%clk 0:00:28]}  Qxd3 {[%clk 0:00:18]} 30. Rg5+ {[%clk 0:00:24]}  Kh8 {[%clk 0:00:18]} 31. Bf1 {[%clk 0:00:01]}  Qe4 {[%clk 0:00:17]} 0-1


[Site "https://www.chess.com"]

[Event "Titled Tuesday Blitz August 08 Early 2023"]
[White "Ashraf, Artin"]
[Black "Cervantes Landeiro, Thalia"]
[WhiteFideId "22514805"]
[BlackFideId "3520498"]
[WhiteElo "2799"]
[BlackElo "2487"]
[Result "1-0"]
[Round "3"]
[TimeControl "180+1"]
[Date "2023.08.08"]
[WhiteClock "0:00:03"]
[BlackClock "0:00:00"]
[Board "97"]

1. e4 {[%clk 0:03:00]}  c5 {[%clk 0:02:58]} 2. Nf3 {[%clk 0:03:01]}  d6 {[%clk 0:02:59]} 3. Bb5+ {[%clk 0:02:57]}  Nd7 {[%clk 0:02:58]} 4. a4 {[%clk 0:02:56]}  a6 {[%clk 0:02:59]} 5. Be2 {[%clk 0:02:53]}  e6 {[%clk 0:02:59]} 6. O-O {[%clk 0:02:53]}  b6 {[%clk 0:02:59]} 7. Re1 {[%clk 0:02:41]}  Ngf6 {[%clk 0:02:58]} 8. Bf1 {[%clk 0:02:40]}  Bb7 {[%clk 0:02:58]} 9. Nc3 {[%clk 0:02:39]}  Be7 {[%clk 0:02:58]} 10. d4 {[%clk 0:02:39]}  cxd4 {[%clk 0:02:58]} 11. Nxd4 {[%clk 0:02:40]}  O-O {[%clk 0:02:59]} 12. b3 {[%clk 0:02:14]}  Rc8 {[%clk 0:02:37]} 13. Bb2 {[%clk 0:02:13]}  Rxc3 {[%clk 0:02:29]} 14. Bxc3 {[%clk 0:02:12]}  Nxe4 {[%clk 0:02:29]} 15. Bb2 {[%clk 0:02:01]}  d5 {[%clk 0:02:21]} 16. Qf3 {[%clk 0:01:22]}  Bd6 {[%clk 0:02:06]} 17. Qh3 {[%clk 0:01:18]}  Bc5 {[%clk 0:01:41]} 18. Rad1 {[%clk 0:00:49]}  Ndf6 {[%clk 0:01:22]} 19. f3 {[%clk 0:00:39]}  Nd6 {[%clk 0:01:19]} 20. Kh1 {[%clk 0:00:37]}  Bc8 {[%clk 0:00:58]} 21. Qg3 {[%clk 0:00:33]}  Nh5 {[%clk 0:00:58]} 22. Qg4 {[%clk 0:00:24]}  g6 {[%clk 0:00:52]} 23. b4 {[%clk 0:00:17]}  e5 {[%clk 0:00:50]} 24. bxc5 {[%clk 0:00:08]}  Bxg4 {[%clk 0:00:49]} 25. fxg4 {[%clk 0:00:06]}  bxc5 {[%clk 0:00:43]} 26. Nc6 {[%clk 0:00:04]}  Qc7 {[%clk 0:00:41]} 27. Nxe5 {[%clk 0:00:04]}  Ng7 {[%clk 0:00:38]} 28. g5 {[%clk 0:00:03]}  d4 {[%clk 0:00:37]} 29. Ng4 {[%clk 0:00:03]}  Ndf5 {[%clk 0:00:34]} 30. c3 {[%clk 0:00:02]}  Ne6 {[%clk 0:00:33]} 31. Nf6+ {[%clk 0:00:02]}  Kh8 {[%clk 0:00:30]} 32. cxd4 {[%clk 0:00:03]}  cxd4 {[%clk 0:00:30]} 33. Bd3 {[%clk 0:00:03]}  Rd8 {[%clk 0:00:20]} 34. Rc1 {[%clk 0:00:03]}  Qf4 {[%clk 0:00:19]} 35. Bxf5 {[%clk 0:00:03]}  Qxf5 {[%clk 0:00:18]} 36. Rf1 {[%clk 0:00:02]}  Qxg5 {[%clk 0:00:18]} 37. Ne4 {[%clk 0:00:02]}  Qh4 {[%clk 0:00:17]} 38. Rce1 {[%clk 0:00:01]}  h6 {[%clk 0:00:13]} 39. Bc1 {[%clk 0:00:01]}  Ng5 {[%clk 0:00:11]} 40. Ng3 {[%clk 0:00:01]}  d3 {[%clk 0:00:10]} 41. Rf4 {[%clk 0:00:01]}  d2 {[%clk 0:00:09]} 42. Bxd2 {[%clk 0:00:01]}  Qxf4 {[%clk 0:00:02]} 43. Bxf4 {[%clk 0:00:02]}  Ne6 {[%clk 0:00:02]} 44. Be5+ {[%clk 0:00:02]}  Kh7 {[%clk 0:00:01]} 45. Rf1 {[%clk 0:00:02]}  Kg8 {[%clk 0:00:01]} 46. Ba1 {[%clk 0:00:03]}  Rd2 {[%clk 0:00:01]} 47. Ne4 {[%clk 0:00:03]}  Ra2 {[%clk 0:00:01]} 48. Nf6+ {[%clk 0:00:03]}  Kf8 {[%clk 0:00:01]} 49. Nd7+ {[%clk 0:00:04]}  Ke7 {[%clk 0:00:02]} 50. Ne5 {[%clk 0:00:05]}  Rxa4 {[%clk 0:00:02]} 51. Rxf7+ {[%clk 0:00:05]}  Kd6 {[%clk 0:00:02]} 52. Rf1 {[%clk 0:00:05]}  Nc5 {[%clk 0:00:02]} 53. Nxg6 {[%clk 0:00:05]}  Nb3 {[%clk 0:00:02]} 54. Be5+ {[%clk 0:00:05]}  Kd5 {[%clk 0:00:02]} 55. Bg3 {[%clk 0:00:06]}  Ra2 {[%clk 0:00:02]} 56. h4 {[%clk 0:00:05]}  a5 {[%clk 0:00:03]} 57. h5 {[%clk 0:00:05]}  a4 {[%clk 0:00:03]} 58. Bf4 {[%clk 0:00:05]}  a3 {[%clk 0:00:02]} 59. Bxh6 {[%clk 0:00:05]}  Nd4 {[%clk 0:00:02]} 60. Bg7 {[%clk 0:00:03]}  Ne2 {[%clk 0:00:02]} 61. Kh2 {[%clk 0:00:02]}  Rb2 {[%clk 0:00:00]} 62. Rd1+ {[%clk 0:00:03]} 1-0


[Site "https://www.chess.com"]

[Event "Titled Tuesday Blitz August 08 Early 2023"]
[White "Shohat, Yotam"]
[Black "Rahman, Masruri"]
[WhiteFideId "2813955"]
[BlackFideId "7101163"]
[WhiteElo "2480"]
[BlackElo "2783"]
[Result "0-1"]
[Round "3"]
[TimeControl "180+1"]
[Date "2023.08.08"]
[WhiteClock "0:00:06"]
[BlackClock "0:00:16"]
[Board "99"]

1. e4 {[%clk 0:02:02]}  e6 {[%clk 0:02:56]} 2. d4 {[%clk 0:01:56]}  d5 {[%clk 0:02:56]} 3. Nc3 {[%clk 0:01:57]}  Bb4 {[%clk 0:02:57]} 4. e5 {[%clk 0:01:54]}  c5 {[%clk 0:02:56]} 5. a3 {[%clk 0:01:53]}  Bxc3+ {[%clk 0:02:56]} 6. bxc3 {[%clk 0:01:54]}  Qc7 {[%clk 0:02:57]} 7. Nf3 {[%clk 0:01:52]}  b6 {[%clk 0:02:56]} 8. Bb5+ {[%clk 0:01:50]}  Bd7 {[%clk 0:02:56]} 9. Bd3 {[%clk 0:01:49]}  Ba4 {[%clk 0:02:55]} 10. O-O {[%clk 0:01:34]}  c4 {[%clk 0:02:50]} 11. Be2 {[%clk 0:01:33]}  Nc6 {[%clk 0:02:50]} 12. Nh4 {[%clk 0:01:26]}  Nge7 {[%clk 0:02:46]} 13. f4 {[%clk 0:01:24]}  f6 {[%clk 0:02:44]} 14. f5 {[%clk 0:01:18]}  exf5 {[%clk 0:02:26]} 15. exf6 {[%clk 0:01:16]}  gxf6 {[%clk 0:02:24]} 16. Bh5+ {[%clk 0:01:16]}  Kd7 {[%clk 0:02:12]} 17. Nxf5 {[%clk 0:01:00]}  Rag8 {[%clk 0:02:08]} 18. Bf4 {[%clk 0:00:51]}  Qd8 {[%clk 0:02:05]} 19. Bg4 {[%clk 0:00:47]}  h5 {[%clk 0:01:52]} 20. Bh3 {[%clk 0:00:41]}  Ke8 {[%clk 0:01:50]} 21. Nd6+ {[%clk 0:00:33]}  Kf8 {[%clk 0:01:50]} 22. Qd2 {[%clk 0:00:27]}  Rg6 {[%clk 0:01:48]} 23. Rae1 {[%clk 0:00:25]}  Kg7 {[%clk 0:01:46]} 24. Nf5+ {[%clk 0:00:23]}  Kh7 {[%clk 0:01:38]} 25. Nxe7 {[%clk 0:00:18]}  Nxe7 {[%clk 0:01:39]} 26. Qe2 {[%clk 0:00:18]}  Re8 {[%clk 0:01:25]} 27. Qxh5+ {[%clk 0:00:14]}  Kg7 {[%clk 0:01:25]} 28. Be5 {[%clk 0:00:06]}  Ng8 {[%clk 0:01:08]} 29. Bf5 {[%clk 0:00:04]}  Rh6 {[%clk 0:01:08]} 30. Qg5+ {[%clk 0:00:04]}  Kh8 {[%clk 0:01:00]} 31. Qf4 {[%clk 0:00:02]}  fxe5 {[%clk 0:00:54]} 32. Rxe5 {[%clk 0:00:03]}  Rf8 {[%clk 0:00:52]} 33. Re2 {[%clk 0:00:01]}  Qf6 {[%clk 0:00:49]} 34. g4 {[%clk 0:00:02]}  Qg7 {[%clk 0:00:47]} 35. g5 {[%clk 0:00:02]}  Bd7 {[%clk 0:00:43]} 36. Rg2 {[%clk 0:00:03]}  Rh7 {[%clk 0:00:30]} 37. Qg4 {[%clk 0:00:02]}  Rxf5 {[%clk 0:00:28]} 38. Rxf5 {[%clk 0:00:03]}  Ne7 {[%clk 0:00:28]} 39. Rgf2 {[%clk 0:00:03]}  Nxf5 {[%clk 0:00:26]} 40. Rxf5 {[%clk 0:00:04]}  Qg6 {[%clk 0:00:22]} 41. Rf8+ {[%clk 0:00:04]}  Kg7 {[%clk 0:00:23]} 42. Qxd7+ {[%clk 0:00:03]}  Kxf8 {[%clk 0:00:23]} 43. Qd8+ {[%clk 0:00:03]}  Kg7 {[%clk 0:00:22]} 44. Qe7+ {[%clk 0:00:04]}  Qf7 {[%clk 0:00:19]} 45. Qe5+ {[%clk 0:00:04]}  Kg8 {[%clk 0:00:20]} 46. Qb8+ {[%clk 0:00:04]}  Qf8 {[%clk 0:00:20]} 47. Qe5 {[%clk 0:00:04]}  Rf7 {[%clk 0:00:16]} 48. Qxd5 {[%clk 0:00:04]}  Kh8 {[%clk 0:00:17]} 49. Qe5+ {[%clk 0:00:04]}  Qg7 {[%clk 0:00:17]} 50. Qe8+ {[%clk 0:00:04]}  Kh7 {[%clk 0:00:18]} 51. Qe4+ {[%clk 0:00:04]}  Qg6 {[%clk 0:00:18]} 52. Qh4+ {[%clk 0:00:04]}  Kg8 {[%clk 0:00:18]} 53. Qg4 {[%clk 0:00:04]}  Qxc2 {[%clk 0:00:16]} 54. g6 {[%clk 0:00:05]}  Qf2+ {[%clk 0:00:14]} 55. Kh1 {[%clk 0:00:05]}  Qf1+ {[%clk 0:00:15]} 56. Qg1 {[%clk 0:00:06]}  Qxg1+ {[%clk 0:00:15]} 57. Kxg1 {[%clk 0:00:06]}  Rf6 {[%clk 0:00:16]} 0-1


[Site "https://www.chess.com"]